fUSD/lending_fUSD_20241028
["ID","MTS","AMOUNT","RATE_DAILY","PERIOD"]
[340924538,1730104251291,-500.0,0.00035,4]
[340924539,1730104251300,-500.0,0.00035,4]
[340924540,1730104251309,-502.47,0.00035,4]
[340924541,1730104251318,-2499.04216954,0.00035,10]
[340924542,1730104251327,-472.79573467,0.00035,120]
[340924543,1730104251337,-20534.91824407,0.00035,30]
[340924544,1730104251346,-173.793825,0.00035,14]
[340924545,1730104251355,-1000.0,0.00035025,2]
[340924546,1730104251364,-604.41,0.00035089,2]
[340924547,1730104251373,-277.019,0.00035089,2]
[340924548,1730104251382,-451.0,0.00035089,2]
[340924549,1730104251391,-1165.926,0.00035089,2]
[340924550,1730104251401,-500.0,0.00035094,5]
[340924551,1730104251410,-152.0,0.00035118,5]
[340924552,1730104251419,-150.0,0.00035338,2]
[340924553,1730104251428,-22256.59,0.00035455,2]
[340924554,1730104251438,-2909.02,0.00035455,2]
[340924555,1730104251447,-1000.0,0.00035616,2]
[340924556,1730104251456,-500.0,0.00035616,13]
[340924557,1730104251466,-500.0,0.00035616,13]
[340924558,1730104251475,-500.0,0.00035616,13]
[340924559,1730104251484,-500.0,0.00035616,13]
[340924560,1730104251494,-500.0,0.00035616,13]
[340924561,1730104251503,-500.0,0.00035616,13]
[340924562,1730104251513,-500.0,0.00035616,13]
[340924563,1730104251522,-500.0,0.00035616,13]
[340924564,1730104251531,-500.0,0.00035616,13]
[340924565,1730104251673,-500.0,0.00035616,13]
[340924566,1730104251683,-500.0,0.00035616,13]
[340924567,1730104251693,-500.0,0.00035616,13]
[340924568,1730104251702,-500.0,0.00035616,13]
[340924569,1730104251711,-500.0,0.00035616,13]
[340924570,1730104251720,-500.0,0.00035616,13]
[340924571,1730104251730,-500.0,0.00035616,13]
[340924572,1730104251739,-500.0,0.00035616,13]
[340924573,1730104251749,-500.0,0.00035616,13]
[340924574,1730104251758,-500.0,0.00035616,13]
[340924575,1730104251768,-500.0,0.00035616,13]
[340924576,1730104251777,-500.0,0.00035616,13]
[340924577,1730104251786,-500.0,0.00035616,13]
[340924578,1730104251795,-500.0,0.00035616,13]
[340924579,1730104251804,-500.0,0.00035616,13]
[340924580,1730104251813,-500.0,0.00035616,13]
[340924581,1730104251822,-500.0,0.00035616,13]
[340924582,1730104251832,-500.0,0.00035616,13]
[340924583,1730104251841,-500.0,0.00035616,13]
[340924584,1730104251850,-500.0,0.00035616,13]
[340924585,1730104251860,-500.0,0.00035616,13]
[340924586,1730104251869,-500.0,0.00035616,13]
[340924587,1730104251878,-500.0,0.00035616,13]
[340924588,1730104251887,-500.0,0.00035616,13]
[340924589,1730104251896,-500.0,0.00035616,13]
[340924590,1730104251905,-500.0,0.00035616,13]
[340924591,1730104251914,-500.0,0.00035616,13]
[340924592,1730104251923,-500.0,0.00035616,13]
[340924593,1730104251932,-500.0,0.00035616,13]
[340924594,1730104251940,-500.0,0.00035616,13]
[340924595,1730104251949,-500.0,0.00035616,13]
[340924596,1730104251958,-500.0,0.00035616,13]
[340924597,1730104251967,-500.0,0.00035616,13]
[340924598,1730104251976,-500.0,0.00035616,13]
[340924599,1730104251986,-500.0,0.00035616,13]
[340924600,1730104251995,-500.0,0.00035616,13]
[340924601,1730104252005,-500.0,0.00035616,13]
[340924602,1730104252014,-500.0,0.00035616,13]
[340924603,1730104252023,-500.0,0.00035616,13]
[340924604,1730104252032,-500.0,0.00035616,13]
[340924605,1730104252042,-500.0,0.00035616,13]
[340924606,1730104252051,-500.0,0.00035616,13]
[340924607,1730104252059,-500.0,0.00035616,13]
[340924608,1730104252069,-500.0,0.00035616,13]
[340924609,1730104252077,-500.0,0.00035616,13]
[340924610,1730104252086,-500.0,0.00035616,13]
[340924611,1730104252095,-500.0,0.00035616,13]
[340924612,1730104252105,-500.0,0.00035616,13]
[340924613,1730104252114,-500.0,0.00035616,13]
[340924614,1730104252123,-500.0,0.00035616,13]
[340924615,1730104252132,-500.0,0.00035616,13]
[340924616,1730104252141,-500.0,0.00035616,13]
[340924617,1730104252150,-500.0,0.00035616,13]
[340924618,1730104252159,-500.0,0.00035616,13]
[340924619,1730104252172,-500.0,0.00035616,13]
[340924620,1730104252181,-482.0,0.00035616,13]
[340924621,1730104252191,-500.0,0.00035616,13]
[340924622,1730104252199,-500.0,0.00035616,13]
[340924623,1730104252208,-500.0,0.00035616,13]
[340924624,1730104252218,-500.0,0.00035616,13]
[340924625,1730104252227,-375.33986498,0.00035673,5]
[340924626,1730104252236,-159.9296651,0.00035673,5]
[340924627,1730104252246,-500.0,0.00035673,5]
[340924628,1730104252255,-903.17198698,0.00036,2]
[340924629,1730104252265,-630.57602264,0.00036,2]
[340924630,1730104252274,-587.96918118,0.00036,120]
[340924631,1730104252283,-3000.0,0.00036,120]
[340924632,1730104252292,-3000.0,0.00036,120]
[340924633,1730104252301,-3000.0,0.00036,120]
[340924634,1730104252310,-3000.0,0.00036,120]
[340924635,1730104252319,-152.0,0.00036122,6]
[340924636,1730104252329,-167.0,0.00036155,2]
[340924637,1730104252338,-167.31,0.00036354,2]
[340924638,1730104252347,-128621.0,0.00036354,5]
[340924639,1730104252356,-151.0,0.00036354,7]
[340924640,1730104252365,-151.0,0.00036354,7]
[340924641,1730104252375,-172.193825,0.00036354,7]
[340924642,1730104252384,-172.193825,0.00036354,7]
[340924643,1730104252394,-159.296011,0.00036354,7]
[340924644,1730104252403,-159.296011,0.00036354,7]
[340924645,1730104252412,-151.0,0.00036354,7]
[340924646,1730104252422,-151.0,0.00036354,7]
[340924647,1730104252431,-151.0,0.00036354,7]
[340924648,1730104252440,-782.471282,0.00036354,7]
[340924649,1730104252450,-782.471282,0.00036354,7]
[340924650,1730104252460,-273.08,0.00036389,2]
[340924651,1730104252469,-1000.0,0.00036464,5]
[340924652,1730104252478,-1102.63,0.0003683,2]
[340924653,1730104252488,-266.38683598,0.00037042,5]
[340924654,1730104252498,-152.0,0.00037125,7]
[340924655,1730104252507,-645.91054144,0.000372,103]
[340924656,1730104252516,-645.91054144,0.000372,103]
[340924657,1730104252525,-645.91054144,0.000372,103]
[340924658,1730104252534,-645.91054144,0.000372,103]
[340924659,1730104252543,-645.91054144,0.000372,103]
[340924660,1730104252553,-27098.7069282,0.00037253,2]
[340924661,1730104252562,-511.23845331,0.00037523,5]
[340924662,1730104252572,-32139.97155175,0.00037543,4]
[340924663,1730104252581,-500.0,0.00037543,2]
[340924664,1730104252590,-500.0,0.00037543,2]
[340924665,1730104252599,-500.0,0.00037543,2]
[340924666,1730104252609,-500.0,0.00037543,2]
[340924667,1730104252619,-500.0,0.00037543,2]
[340924668,1730104252628,-500.0,0.00037543,2]
[340924669,1730104252637,-500.0,0.00037543,2]
[340924670,1730104252647,-500.0,0.00037543,2]
[340924671,1730104252657,-500.0,0.00037543,2]
[340924672,1730104252667,-500.0,0.00037543,2]
[340924673,1730104252677,-500.0,0.00037543,2]
[340924674,1730104252687,-500.0,0.00037543,2]
[340924675,1730104252697,-500.0,0.00037543,2]
[340924676,1730104252707,-500.0,0.00037543,2]
[340924677,1730104252716,-500.0,0.00037543,2]
[340924678,1730104252726,-500.0,0.00037543,2]
[340924679,1730104252735,-500.0,0.00037543,2]
[340924680,1730104252745,-4134.38453939,0.0003759,2]
[340924681,1730104252754,-2000.0,0.000377,110]
[340924682,1730104252764,-2008.8927,0.0003781,2]
[340924683,1730104252773,-17133.06351071,0.000379,2]
[340924684,1730104252782,-150.03410965,0.000379,120]
[340924685,1730104252792,-150.03410965,0.000379,120]
[340924686,1730104252801,-150.03410965,0.000379,120]
[340924687,1730104252810,-150.03410965,0.000379,120]
[340924688,1730104252820,-150.03410965,0.000379,120]
[340924689,1730104252829,-150.03410965,0.000379,120]
[340924690,1730104252839,-150.03410965,0.000379,120]
[340924691,1730104252848,-150.03410965,0.000379,120]
[340924692,1730104252857,-150.03410965,0.000379,120]
[340924693,1730104252867,-150.03410965,0.000379,120]
[340924694,1730104252876,-150.03410965,0.000379,120]
[340924695,1730104252885,-150.03410965,0.000379,120]
[340924696,1730104252894,-150.03410965,0.000379,120]
[340924697,1730104252903,-150.03410965,0.000379,120]
[340924698,1730104252913,-150.03410965,0.000379,120]
[340924699,1730104252921,-150.03410965,0.000379,120]
[340924700,1730104252931,-694.82257909,0.00038,2]
[340924701,1730104252940,-2000.0,0.00038,120]
[340924702,1730104252949,-395.81,0.00038089,2]
[340924703,1730104252959,-152.0,0.00038129,8]
[340924704,1730104252968,-172.10281,0.00038298,40]
[340924705,1730104252977,-150.0,0.00038338,2]
[340924706,1730104252986,-151.0,0.00038356,7]
[340924707,1730104252996,-151.0,0.00038356,7]
[340924708,1730104253005,-1500.0,0.00038356,2]
[340924709,1730104253014,-172.193825,0.00038356,7]
[340924710,1730104253023,-172.193825,0.00038356,7]
[340924711,1730104253032,-159.296011,0.00038356,7]
[340924712,1730104253042,-159.296011,0.00038356,7]
[340924713,1730104253051,-225.627372,0.00038356,7]
[340924714,1730104253061,-151.0,0.00038356,7]
[340924715,1730104253071,-151.0,0.00038356,7]
[340924716,1730104253081,-782.471282,0.00038356,7]
[340924717,1730104253090,-782.471282,0.00038356,7]
[340924718,1730104253099,-570.108,0.00038356,120]
[340924719,1730104253108,-528502.4,0.00038356,2]
[340924720,1730104253118,-8524.72,0.00038356,2]
[340924721,1730104253127,-531.89663962,0.00038373,5]
[340924722,1730104253137,-20000.0,0.000384,2]
[340924723,1730104253146,-637.25136796,0.00038499,120]
[340924724,1730104253156,-1000.0,0.00038527,2]
[340924725,1730104253165,-206.05931871,0.00038536,3]
[340924726,1730104253175,-151.0,0.00038664,2]
[340924727,1730104253184,-500.0,0.00038664,4]
[340924728,1730104253193,-500.0,0.00038672,4]
[340924729,1730104253202,-500.0,0.00038681,4]
[340924730,1730104253211,-500.0,0.0003869,4]
[340924731,1730104253220,-336.3191635,0.00038969,5]
[340924732,1730104253230,-1000.0,0.00039,2]
[340924733,1730104253239,-174.1778773,0.00039,120]
[340924734,1730104253253,-214.0,0.00039,2]
[340924735,1730104253263,-214.0,0.00039,2]
[340924736,1730104253273,-425.23519374,0.00039,10]
[340924737,1730104253282,-161.273543,0.00039,2]
[340924738,1730104253291,-1102.63,0.00039094,2]
[340924739,1730104253300,-152.0,0.00039132,9]
[340924740,1730104253310,-1004.28,0.000395,30]
[340924741,1730104253319,-1319.36,0.000395,14]
[340924742,1730104253329,-135123.17659151,0.000397,2]
[340924743,1730104253337,-152522.65911788,0.000398,2]
[340924744,1730104253347,-151.0,0.000398,14]
[340924745,1730104253355,-301.999999,0.000398,14]
[340924746,1730104253364,-172.193825,0.000398,14]
[340924747,1730104253373,-172.193825,0.000398,14]
[340924748,1730104253382,-159.296011,0.000398,14]
[340924749,1730104253392,-159.296011,0.000398,14]
[340924750,1730104253401,-151.0,0.000398,14]
[340924751,1730104253410,-282.445007,0.000398,14]
[340924752,1730104253420,-782.471282,0.000398,14]
[340924753,1730104253429,-782.471282,0.000398,14]
[340924754,1730104253438,-3765.7059088,0.0003988,7]
[340924755,1730104253447,-300.0,0.000399,14]
[340924756,1730104253456,-155.80560653,0.000399,2]
[340924757,1730104253465,-166.61,0.00039927,120]
[340924758,1730104253474,-581133.31523463,0.0004,30]
[340924759,1730104253484,-296995.24430668,0.0004,30]
[340924760,1730104253496,-1127.84311786,0.0004,21]
[340924761,1730104253505,-1000.0,0.0004,2]
[340924762,1730104253515,-5498.11073321,0.0004,4]
[340924763,1730104253524,-2999.99,0.0004,2]
[340924764,1730104253533,-2000.0,0.0004,120]
[340924765,1730104253542,-1170.57,0.0004,2]
[340924766,1730104253551,-3000.0,0.0004,2]
[340924767,1730104253560,-3000.0,0.0004,2]
[340924768,1730104253569,-3009.9,0.0004,2]
[340924769,1730104253579,-2999.97,0.0004,2]
[340924770,1730104253588,-181.47,0.0004,2]
[340924771,1730104253598,-155.25980598,0.0004,120]
[340924772,1730104253607,-4403.41443549,0.0004,30]
[340924773,1730104253617,-2102.46400799,0.0004,2]
[340924774,1730104253626,-323.39922274,0.0004,120]
[340924775,1730104253636,-64233.4347604,0.0004,30]
[340924776,1730104253645,-1598.41101682,0.0004,14]
[340924777,1730104253654,-372.94174692,0.0004,2]
[340924778,1730104253663,-209.10634073,0.0004,2]
[340924779,1730104253672,-697.80954659,0.0004,60]
[340924780,1730104253681,-771353.73243518,0.0004,30]
[340924781,1730104253690,-508.24636901,0.0004,5]
[340924782,1730104253699,-111023.0,0.0004,2]
[340924783,1730104253709,-151.0,0.0004,14]
[340924784,1730104253718,-151.0,0.0004,14]
[340924785,1730104253727,-151.0,0.0004,14]
[340924786,1730104253736,-172.193825,0.0004,14]
[340924787,1730104253748,-172.193825,0.0004,14]
[340924788,1730104253757,-172.193825,0.0004,14]
[340924789,1730104253766,-172.193825,0.0004,14]
[340924790,1730104253776,-172.193825,0.0004,14]
[340924791,1730104253785,-172.193825,0.0004,14]
[340924792,1730104253794,-1206.3364104,0.0004,12]
[340924793,1730104253804,-159.296011,0.0004,14]
[340924794,1730104253813,-159.296011,0.0004,14]
[340924795,1730104253822,-159.296011,0.0004,14]
[340924796,1730104253832,-159.296011,0.0004,14]
[340924797,1730104253842,-159.296011,0.0004,14]
[340924798,1730104253851,-159.296011,0.0004,14]
[340924799,1730104253860,-151.0,0.0004,14]
[340924800,1730104253870,-151.0,0.0004,14]
[340924801,1730104253879,-151.0,0.0004,14]
[340924802,1730104253888,-446.184353,0.0004,14]
[340924803,1730104253897,-782.471282,0.0004,14]
[340924804,1730104253907,-782.471282,0.0004,14]
[340924805,1730104253916,-782.471282,0.0004,14]
[340924806,1730104253924,-782.471282,0.0004,14]
[340924807,1730104253933,-782.471282,0.0004,14]
[340924808,1730104253942,-782.471282,0.0004,14]
[340924809,1730104253951,-155.98,0.0004,2]
[340924810,1730104253960,-155.98,0.0004,2]
[340924811,1730104253968,-155.98,0.0004,2]
[340924812,1730104253977,-155.98,0.0004,2]
[340924813,1730104253986,-155.98,0.0004,2]
[340924814,1730104253997,-155.98,0.0004,2]
[340924815,1730104254006,-155.98,0.0004,2]
[340924816,1730104254015,-155.98,0.0004,2]
[340924817,1730104254024,-155.98,0.0004,2]
[340924818,1730104254033,-155.98,0.0004,2]
[340924819,1730104254042,-155.98,0.0004,2]
[340924820,1730104254051,-155.98,0.0004,2]
[340924821,1730104254060,-155.98,0.0004,2]
[340924822,1730104254069,-155.98,0.0004,2]
[340924823,1730104254078,-155.98,0.0004,2]
[340924824,1730104254087,-155.98,0.0004,2]
[340924825,1730104254096,-155.98,0.0004,2]
[340924826,1730104254106,-155.98,0.0004,2]
[340924827,1730104254115,-155.98,0.0004,2]
[340924828,1730104254124,-1557.6325,0.00040064,14]
[340924829,1730104254133,-217.9625,0.00040064,14]
[340924830,1730104254142,-152.0,0.00040136,10]
[340924831,1730104254150,-465.48862484,0.000402,120]
[340924832,1730104254159,-177.04,0.00040235,120]
[340924833,1730104254173,-1319.36,0.000403,14]
[340924834,1730104254182,-500.0,0.00040548,30]
[340924835,1730104254191,-11533.0,0.000406,3]
[340924836,1730104254200,-500.0,0.00040822,30]
[340924837,1730104254209,-1508.59,0.00040822,2]
[340924838,1730104254219,-18000.0,0.0004088,2]
[340924839,1730104254228,-486.11132421,0.00040888,120]
[340924840,1730104254238,-1004.28,0.000409,30]
[340924841,1730104254251,-5000.0,0.00041,2]
[340924842,1730104254260,-20084.35074639,0.00041,20]
[340924843,1730104254269,-258.63,0.00041,120]
[340924844,1730104254278,-2000.0,0.00041095,2]
[340924845,1730104254287,-150.0,0.00041096,2]
[340924846,1730104254296,-157.0,0.00041096,2]
[340924847,1730104254305,-500.0,0.00041096,30]
[340924848,1730104254314,-200.0,0.000411,2]
[340924849,1730104254323,-479.0,0.000411,2]
[340924850,1730104254332,-176.7439537,0.000411,2]
[340924851,1730104254341,-549.0,0.000411,2]
[340924852,1730104254351,-1500.0,0.000411,2]
[340924853,1730104254360,-152.0,0.00041139,11]
[340924854,1730104254369,-11533.0,0.000412,5]
[340924855,1730104254378,-500.0,0.00041263,60]
[340924856,1730104254387,-500.0,0.00041263,60]
[340924857,1730104254395,-500.0,0.00041263,60]
[340924858,1730104254405,-500.0,0.00041263,60]
[340924859,1730104254413,-500.0,0.00041263,60]
[340924860,1730104254423,-1000.0,0.000413,30]
[340924861,1730104254431,-1000.0,0.000413,30]
[340924862,1730104254440,-1000.0,0.000413,30]
[340924863,1730104254449,-1000.0,0.000413,30]
[340924864,1730104254458,-1004.28,0.000413,30]
[340924865,1730104254467,-1319.36,0.000413,60]
[340924866,1730104254476,-1102.63,0.00041358,2]
[340924867,1730104254485,-2000.0,0.0004137,30]
[340924868,1730104254495,-4117.0,0.0004153,7]
[340924869,1730104254505,-5056.31,0.0004153,7]
[340924870,1730104254513,-5921.21,0.0004153,7]
[340924871,1730104254523,-7982.71,0.0004153,7]
[340924872,1730104254531,-1000.0,0.000416,30]
[340924873,1730104254540,-1000.0,0.000416,30]
[340924874,1730104254549,-2000.0,0.00041644,30]
[340924875,1730104254558,-4139.3,0.00041877,7]
[340924876,1730104254567,-4139.3,0.00041877,7]
[340924877,1730104254693,-4139.3,0.00041877,7]
[340924878,1730104254703,-1000.0,0.000419,30]
[340924879,1730104254713,-2000.0,0.00041918,30]
[340924880,1730104254723,-5001.71856,0.00041956,30]
[340924881,1730104254733,-4000.0,0.00042,2]
[340924882,1730104254743,-273738.96883296,0.00042,2]
[340924883,1730104254752,-52258.28327658,0.00042,2]
[340924884,1730104254762,-8860.40467683,0.00042,2]
[340924885,1730104254772,-76247.93648641,0.00042,2]
[340924886,1730104254781,-500.0,0.00042,15]
[340924887,1730104254790,-500.0,0.00042,30]
[340924888,1730104254799,-500.0,0.00042,30]
[340924889,1730104254808,-500.20059554,0.00042,10]
[340924890,1730104254817,-157.97330774,0.00042,30]
[340924891,1730104254827,-151.0,0.00042,14]
[340924892,1730104254836,-172.193825,0.00042,14]
[340924893,1730104254846,-172.193825,0.00042,14]
[340924894,1730104254856,-159.296011,0.00042,14]
[340924895,1730104254866,-159.296011,0.00042,14]
[340924896,1730104254875,-151.0,0.00042,14]
[340924897,1730104254884,-782.471282,0.00042,14]
[340924898,1730104254893,-782.471278,0.00042,14]
[340924899,1730104254903,-1314.24936745,0.0004201,2]
[340924900,1730104254911,-1000.0,0.0004203,2]
[340924901,1730104254921,-152.0,0.00042142,12]
[340924902,1730104254930,-150.0,0.00042177,2]
[340924903,1730104254939,-2000.0,0.00042192,30]
[340924904,1730104254948,-1000.0,0.000422,30]
[340924905,1730104254957,-2000.0,0.00042466,30]
[340924906,1730104254966,-559.73668321,0.000425,2]
[340924907,1730104254975,-7592.89,0.000425,7]
[340924908,1730104254983,-11259.02,0.000425,7]
[340924909,1730104254993,-1491.49,0.000425,7]
[340924910,1730104255002,-1004.28,0.000425,30]
[340924911,1730104255011,-1319.36,0.000425,60]
[340924912,1730104255020,-176.42,0.00042651,120]
[340924913,1730104255031,-415.40102686,0.000428,60]
[340924914,1730104255040,-500.0,0.0004283,2]
[340924915,1730104255049,-500.0,0.0004283,2]
[340924916,1730104255059,-500.0,0.0004283,2]
[340924917,1730104255068,-500.0,0.0004283,2]
[340924918,1730104255077,-500.0,0.0004283,2]
[340924919,1730104255086,-500.0,0.0004283,2]
[340924920,1730104255095,-500.0,0.0004283,2]
[340924921,1730104255104,-500.45,0.0004283,2]
[340924922,1730104255113,-501.09,0.0004283,2]
[340924923,1730104255122,-972.5,0.0004283,2]
[340924924,1730104255131,-239.3939584,0.000429,30]
[340924925,1730104255140,-198.11005221,0.000429,60]
[340924926,1730104255148,-258.63024247,0.00042945,15]
[340924927,1730104255158,-258.63024239,0.00042945,15]
[340924928,1730104255167,-258.63024239,0.00042945,15]
[340924929,1730104255176,-258.63024239,0.00042945,15]
[340924930,1730104255185,-258.63024239,0.00042945,15]
[340924931,1730104255194,-258.63024239,0.00042945,15]
[340924932,1730104255203,-258.63024239,0.00042945,15]
[340924933,1730104255212,-258.63024239,0.00042945,15]
[340924934,1730104255221,-258.63024239,0.00042945,15]
[340924935,1730104255230,-164.87676285,0.00042999,5]
[340924936,1730104255239,-4513.92,0.00043,2]
[340924937,1730104255250,-10085.64014497,0.00043,10]
[340924938,1730104255259,-400.0,0.00043,3]
[340924939,1730104255268,-20700.4968263,0.00043,120]
[340924940,1730104255277,-1017.0,0.00043,9]
[340924941,1730104255286,-1000.0,0.00043,10]
[340924942,1730104255295,-211.99,0.00043,30]
[340924943,1730104255304,-225.28775,0.00043,30]
[340924944,1730104255313,-630.0,0.00043,120]
[340924945,1730104255322,-604.89037147,0.00043,120]
[340924946,1730104255330,-34888.27,0.00043,120]
[340924947,1730104255339,-14383.97067318,0.00043,120]
[340924948,1730104255348,-100000.0,0.00043,90]
[340924949,1730104255357,-100000.0,0.00043,60]
[340924950,1730104255367,-125135.61812106,0.00043,30]
[340924951,1730104255376,-151.0,0.00043,14]
[340924952,1730104255385,-151.0,0.00043,14]
[340924953,1730104255395,-172.193825,0.00043,14]
[340924954,1730104255404,-172.193825,0.00043,14]
[340924955,1730104255414,-172.193825,0.00043,14]
[340924956,1730104255423,-172.193834,0.00043,14]
[340924957,1730104255432,-159.296011,0.00043,14]
[340924958,1730104255442,-159.296009,0.00043,14]
[340924959,1730104255451,-62375.85828462,0.00043,2]
[340924960,1730104255460,-151.0,0.00043,14]
[340924961,1730104255469,-152.0,0.00043146,13]
[340924962,1730104255479,-869.66586725,0.00043242,30]
[340924963,1730104255488,-150.0,0.00043259,2]
[340924964,1730104255497,-655.00316395,0.000434,120]
[340924965,1730104255507,-655.00316388,0.000434,120]
[340924966,1730104255516,-655.00316388,0.000434,120]
[340924967,1730104255525,-655.00316388,0.000434,120]
[340924968,1730104255534,-655.00316388,0.000434,120]
[340924969,1730104255543,-655.00316388,0.000434,120]
[340924970,1730104255552,-655.00316388,0.000434,120]
[340924971,1730104255562,-655.00316388,0.000434,120]
[340924972,1730104255571,-655.00316388,0.000434,120]
[340924973,1730104255580,-2000.0,0.000435,15]
[340924974,1730104255589,-5000.0,0.000435,120]
[340924975,1730104255598,-15238.32745328,0.000435,2]
[340924976,1730104255607,-761.05414581,0.000435,2]
[340924977,1730104255617,-300.0,0.000436,15]
[340924978,1730104255627,-1102.63,0.00043622,2]
[340924979,1730104255636,-151.84060443,0.00043664,120]
[340924980,1730104255645,-2631.60243737,0.00043689,10]
[340924981,1730104255654,-300.0,0.000437,15]
[340924982,1730104255664,-666971.0,0.000437,120]
[340924983,1730104255673,-1124.1988,0.00043724,2]
[340924984,1730104255683,-2000.0,0.00043724,2]
[340924985,1730104255692,-510.0,0.000438,30]
[340924986,1730104255701,-15185.6429714,0.000438,60]
[340924987,1730104255711,-153.03,0.000438,36]
[340924988,1730104255720,-153.03,0.000438,36]
[340924989,1730104255730,-153.03,0.000438,36]
[340924990,1730104255739,-153.03,0.000438,36]
[340924991,1730104255749,-153.03,0.000438,36]
[340924992,1730104255758,-153.03,0.000438,36]
[340924993,1730104255767,-153.03,0.000438,36]
[340924994,1730104255777,-741.0,0.000438,15]
[340924995,1730104255786,-1047.82603482,0.00043827,2]
[340924996,1730104255795,-1141.1644865,0.00043827,2]
[340924997,1730104255804,-6537.96466608,0.00043827,2]
[340924998,1730104255814,-2226.286178,0.00043827,2]
[340924999,1730104255824,-500.0,0.00043835,120]
[340925000,1730104255834,-500.0,0.00043835,120]
[340925001,1730104255843,-500.0,0.00043835,120]
[340925002,1730104255853,-387.4465262,0.00043835,120]
[340925003,1730104255863,-500.0,0.00043835,30]
[340925004,1730104255872,-500.0,0.00043835,30]
[340925005,1730104255880,-500.0,0.00043835,30]
[340925006,1730104255889,-500.0,0.00043835,30]
[340925007,1730104255898,-500.0,0.00043835,30]
[340925008,1730104255907,-500.0,0.00043835,30]
[340925009,1730104255916,-500.0,0.00043835,30]
[340925010,1730104255926,-500.0,0.00043835,30]
[340925011,1730104255935,-500.0,0.00043835,30]
[340925012,1730104255944,-500.0,0.00043835,30]
[340925013,1730104255953,-500.0,0.00043835,30]
[340925014,1730104255962,-500.0,0.00043835,30]
[340925015,1730104255971,-500.0,0.00043835,30]
[340925016,1730104255980,-500.0,0.00043835,30]
[340925017,1730104255989,-500.0,0.00043835,30]
[340925018,1730104256000,-500.0,0.00043835,30]
[340925019,1730104256009,-500.0,0.00043835,30]
[340925020,1730104256018,-500.0,0.00043835,30]
[340925021,1730104256027,-500.0,0.00043835,30]
[340925022,1730104256036,-500.0,0.00043835,30]
[340925023,1730104256045,-564.44811406,0.00043835,30]
[340925024,1730104256055,-500.0,0.00043835,30]
[340925025,1730104256063,-500.0,0.00043835,30]
[340925026,1730104256072,-500.0,0.00043835,30]
[340925027,1730104256081,-500.0,0.00043835,30]
[340925028,1730104256090,-500.0,0.00043835,30]
[340925029,1730104256099,-500.0,0.00043835,30]
[340925030,1730104256107,-500.0,0.00043835,30]
[340925031,1730104256117,-500.0,0.00043835,30]
[340925032,1730104256126,-500.0,0.00043835,30]
[340925033,1730104256135,-500.0,0.00043835,30]
[340925034,1730104256144,-288.54364282,0.00043835,30]
[340925035,1730104256154,-500.0,0.00043835,30]
[340925036,1730104256164,-500.0,0.00043835,30]
[340925037,1730104256177,-500.0,0.00043835,30]